Workbook

Sheet FEB 2024 - JAN 2025
H3: NATIONAL YOUTH DEVELOPMENT AGENCY COMMERCIAL POLICY
H4: PERIOD OF INSURANCE: FEBRUARY 2024 - JANUARY 2025
I5: CLAIMS HISTORY REPORT
A6: Insured Year | B6: Date of Loss | C6: Date Registered | D6: User | E6: Section of Cover | F6: Location | G6: Asset ID | H6: Asset Label | I6: Description | J6: Claim Number | K6: Excess | L6: Gross | M6: Net | N6: Status
A7: 2024/2025 | B7: 06/02/2024 | C7: 13/02/2024 | D7: Nelisiwe Gumede | E7: BAR | F7: PDDD/Durban | G7: CE5252 | H7: CE5252-1 | I7: Stolen Laptop : Dell Latitude 3330 2in1 QTY100 | J7: 124308194 | K7: R2,716.90 | L7: R27,169.00 | M7: R24,452.10 | N7: Settled. File closed.
A8: 2024/2025 | B8: 12/03/2024 | C8: 28/03/2024 | D8: Welile Ntlebi | E8: BAR | F8: Secunda Centre | G8: CE4011 | H8: CE4011-1 | I8: Stolen laptop : DELL Lattitude 5300 | J8: 124313557 | K8: R2,631.90 | L8: R26,319.00 | M8: R23,687.10 | N8: Settled. File closed.
A9: 2024/2025 | B9: 07/03/2024 | C9: 22/03/2024 | D9: Simphiwe | E9: BAR | F9: Woodmead Office | G9: CE4394-1 | H9: CE4394-1 | I9: Stolen laptop : DELL Intel Core i3 | J9: 124310097 | K9: R2,000.00 | L9: R13,364.58 | M9: R11,364.58 | N9: Settled. File closed.
A10: 2024/2025 | B10: 23/02/2024 | C10: 03/04/2024 | D10: Lusanda | E10: BAR | F10: East London Centre | G10: CE5077-1 | H10: =$G$10 -> CE5077-1 | I10: Stolen laptop | J10: 124316160 | K10: R2,519.90 | L10: R25,199.00 | M10: R22,679.10 | N10: =$N$9 -> Settled. File closed.
A11: 2024/2025 | B11: 01/03/2024 | C11: 18/03/2024 | D11: Motor | E11: MOTOR | F11: Bloemfontein | G11: HC 42 KY GP | H11: HC 42 KY GP | I11: Motor Accident : Iveco | J11: 124308765 | K11: R91,330.04 | L11: R913,300.40 | M11: R821,970.36 | N11: Settled. File closed.
A12: 2024/2025 | B12: 26/03/2024 | C12: 28/03/2024 | D12: Westrand Office | E12: OFFICE CONTENTS | F12: Westrand office | I12: Break-in Claim No: | J12: 124313314 | K12: R11,860.20 | L12: R237,204.00 | M12: R225,343.80 | N12: Settled. File closed.
A13: 2024/2025 | B13: 27/03/2024 | C13: 22/04/2024 | D13: Lucricia Ndhlovu | E13: BAR | F13: Thulamahashe/Lillydale | G13: CE4289 | H13: CE4289-1 | I13: Damaged Laptop | J13: 124330698 | K13: R2,000.00 | L13: R6,095.00 | M13: R4,095.00 | N13: Settled. File closed.
A14: 2024/2025 | B14: 01/03/2024 | C14: 22/04/2024 | D14: Pulane Moadira | E14: BAR | F14: =$F$11 -> Bloemfontein | G14: CE4390-1 CE5250-1 | I14: Damaged Laptops (Pulane and Thuso) | J14: 124335381 | K14: R3,578.96 | L14: R35,789.80 | M14: R32,210.62 | N14: Settled. File closed.
A15: 2024/2025 | B15: 01/03/2024 | C15: 20/05/2024 | D15: Pulane Moadira | Tshepang | Thuso | E15: GPA | F15: Bloemfontein | I15: Group Personal Accident | J15: 124344641 | K15: TBA | L15: TBA | M15: TBA | N15: Pulane claim - awaiting NYDA's response if they did lodge a claim with COIDA | Tshepang claim - Awaiting insurer's feedback | Thuso claim - Awaiting NYDA to furnish all pertinent documents. 14/07/2026 NYDA advised to follow-up and revert to broker
A16: 2024/2025 | B16: 13/05/2024 | C16: 16/05/2024 | D16: Minah Ngwetjana | E16: BAR | I16: Damaged Laptop : Dell laptop | J16: 124342716 | K16: R0.00 | L16: R0.00 | M16: R0.00 | N16: Asset not on asset register. File Closed
A17: 2024/2025 | B17: 23/04/2024 | C17: 16/05/2024 | D17: Paballo Phadi | E17: BAR | F17: Welkom | G17: CE4524-1 | H17: =$G$17 -> CE4524-1 | I17: Damaged Tablet; Samsung Galaxy Tab S6 Lite | J17: 124342727 | K17: R2,000.00 | L17: R3,309.85 | M17: R1,309.85 | N17: =$N$7 -> Settled. File closed.
A18: 2024/2025 | B18: 28/03/2024 | C18: 17/05/2024 | D18: Luyanda Madlanga | E18: BAR | F18: Woodmead Office | I18: Stolen laptop: Dell laptop | J18: 124343708 | K18: R0.00 | L18: R0.00 | M18: R0.00 | N18: NYDA found the laptop. File Closed.
A19: 2024/2025 | B19: 30/05/2024 | C19: 18/06/2024 | E19: OFFICE CONTENTS | F19: Rustenburg Centre | G19: OE1802-1 | H19: OE1802-1 | I19: Broken stand | J19: 124360741 | K19: R2,500.00 | L19: R2,530.00 | M19: R30.00 | N19: Settled. File closed.
A20: 2024/2025 | B20: 02/06/2024 | C20: 21/06/2024 | D20: Sandisi | E20: BAR | G20: CE4649-1 | H20: CE4649-1 | I20: Stolen Laptop | J20: 124363226 | K20: R2,000.00 | L20: R3,195.96 | M20: R1,195.96 | N20: =$N$7 -> Settled. File closed.
A21: 2024/2025 | B21: 15/06/2024 | C21: 05/07/2024 | D21: Moscow | E21: MOTOR | F21: Polokwane | G21: HM34JY GP | H21: HM34JY GP | I21: Motor Accident : Polokwane | J21: 124371269 | K21: R5,000.00 | L21: R27,595.84 | M21: R22,595.84 | N21: =$N$20 -> Settled. File closed.
A22: 2024/2025 | B22: 09/06/2024 | C22: 05/07/2024 | D22: Asanda | E22: BAR | G22: CE5176-1 | H22: =$G$22 -> CE5176-1 | I22: Damaged Tablet : Samsung S6 life with sylus pen | J22: 124372472 | K22: R2,000.00 | L22: R5,116.80 | M22: R3,116.80 | N22: =$N$20 -> Settled. File closed.
A23: 2024/2025 | B23: 25/06/2024 | C23: 17/07/2024 | D23: Kedibone Bereng | E23: EE | F23: Bloemfontein | G23: OE897-1 | H23: =$G$23 -> OE897-1 | I23: Stolen Projector | J23: 124379304 | K23: R2,500.00 | L23: R9,000.00 | M23: R6,500.00 | N23: Settled. File closed.
A24: 2024/2025 | B24: 16/07/2024 | C24: 17/07/2024 | D24: Shadrack | E24: MOTOR | F24: Woodmead Office | G24: KS08DYGP | H24: KS08DYGP | I24: Motor Accident; Opel Combo | J24: 124379326 | K24: R5,000.00 | L24: R59,265.27 | M24: =L24-K24 -> R54,265.27 | N24: Settled. File Closed.
A25: 2024/2025 | B25: 19/07/2024 | C25: 25/07/2024 | D25: Vusi Ngwenya | E25: BAR | F25: Woodmead Office | G25: CE4572-1 | H25: =$G$25 -> CE4572-1 | I25: Stolen laptop | J25: 124385524 | K25: R2,027.29 | L25: R20,272.85 | M25: R18,245.56 | N25: Settled. File Closed.
A26: 2024/2025 | B26: 30/07/2024 | C26: 05/08/2024 | D26: Lebohang Manyama | E26: BAR | G26: CE4831 | H26: CE4831 | I26: Damaged Samsung Tablet | J26: 124388311 | K26: R2,000.00 | L26: R11,960.00 | M26: R9,960.00 | N26: Settled. File Closed.
A27: 2024/2025 | B27: 30/07/2024 | C27: 13/08/2024 | D27: Puleng Rantso | E27: MOTOR | F27: Woodmead Office | G27: JN 59 BJ GP | H27: JN 59 BJ GP | I27: Cracked Windscreen ; VW Caddy | J27: 124392329 | K27: R0.00 | L27: R4,924.47 | M27: R4,924.47 | N27: Settled. File Closed.
A28: 2024/2025 | B28: 28/07/2024 | C28: 08/08/2024 | D28: Mawakhazole Nyatela | E28: BAR | G28: CE4820 | H28: CE4820 | I28: Damaged Tablet | J28: 124390715 | K28: R2,000.00 | L28: R11,960.00 | M28: R9,960.00 | N28: Settled. File Closed.
A29: 2024/2025 | B29: 07/08/2024 | C29: 20/08/2024 | D29: Palesa Mafoka | E29: BAR | G29: CE4544 | H29: CE4544 | I29: Stolen Tablet | J29: 124398687 | K29: R2,000.00 | L29: R3,309.85 | M29: R1,309.85 | N29: =$N$7 -> Settled. File closed.
A30: 2024/2025 | C30: 28/08/2024 | D30: George | E30: MOTOR | F30: Kimberly | G30: JF 49 ZK GP | H30: JF 49 ZK GP | I30: Towing Invoice | J30: TN-184225 | K30: R0.00 | L30: R0.00 | M30: R0.00 | N30: Claim dismissed - Client to borne costs
A31: 2024/2025 | B31: 27/08/2024 | C31: 02/09/2024 | D31: Shadrack | E31: MOTOR | F31: Woodmead Office | G31: LS 58 FG GP | H31: LS 58 FG GP | I31: damaged rear windscreen ; GWM steed 5 | J31: 124403322 | K31: R673.09 | L31: R2,692.25 | M31: =L31-K31 -> R2,019.16 | N31: =$N$29 -> Settled. File closed.
A32: 2024/2025 | B32: 30/08/2024 | C32: 05/09/2024 | D32: Promise Sibanyoni | E32: MOTOR | G32: LF 31 TD GP | H32: =$G$32 -> LF 31 TD GP | I32: Motor accident | J32: 124412746 | K32: R5,000.00 | L32: =K32+M32 -> R25,906.25 | M32: R20,906.25 | N32: Settled. File closed.
A33: 2024/2025 | B33: 04/09/2024 | C33: 06/09/2024 | D33: Raoul Weldon | E33: BAR | F33: Portsheptone | G33: CE4526-1 | H33: CE4526-1 | I33: Damaged tablet | J33: 124406249 | K33: R2,000.00 | L33: R3,309.85 | M33: R1,309.85 | N33: Settled. File closed.
A34: 2024/2025 | B34: 29/08/2024 | C34: 11/09/2024 | D34: Tshepo Manyama | E34: BAR | G34: CE4984 | H34: CE4984 | I34: Damaged Dell Laptop | J34: 124410211 | K34: R2,000.00 | L34: R7,820.00 | M34: =L34-K34 -> R5,820.00 | N34: =$N$29 -> Settled. File closed.
A35: 2024/2025 | B35: 05/09/2024 | C35: 13/09/2024 | D35: Promise Sibanyoni | E35: MOTOR | F35: Kwa Thema | G35: LS 58 FG GP | H35: LS 58 FG GP | I35: Chipped Windscreen GWM Bakkie | J35: 124409687 | K35: R0.00 | L35: R786.26 | M35: R786.26 | N35: =$N$29 -> Settled. File closed.
A36: 2024/2025 | B36: 20/09/2024 | C36: 07/10/2024 | D36: Carlyn Sassman | E36: BAR | F36: Cape Town | G36: CE4216-1 | H36: CE4216-1 | I36: Damaged Dell latitude 7490 Laptop | J36: 124422145 | K36: R2,000.00 | L36: R5,085.30 | M36: R3,085.30 | N36: =$N$29 -> Settled. File closed.
A37: 2024/2025 | B37: 25/09/2024 | C37: 10/10/2024 | D37: Jeremiah Lukas | E37: BAR | G37: CE4051 | H37: CE4051 | I37: Stolen dell laptop | J37: 124423567 | K37: R2,454.90 | L37: R24,549.00 | M37: R22,094.10 | N37: =$N$29 -> Settled. File closed.
A38: 2024/2025 | B38: 04/09/2024 | C38: 18/10/2024 | D38: Mr Dikotsi | E38: GIT | F38: Woodmead Office | I38: Damaged furniture in transit | J38: 124437834/RES2187 | K38: R2,562.46 | L38: R51,249.27 | M38: =L38-K38 -> R48,686.81 | N38: Settled. File closed.
A39: 2024/2025 | B39: 30/09/2024 | C39: 22/10/2024 | D39: Churchill Mhlaba | E39: BAR | I39: Damaged Laptop | J39: 124437862 | K39: R2,000.00 | L39: R5,290.00 | M39: =L39-K39 -> R3,290.00 | N39: Settled. File closed.
A40: 2024/2025 | B40: 01/11/2024 | C40: 12/11/2024 | D40: Solomzi Tshona | E40: BAR | F40: East London Centre | G40: CE4877 | H40: CE4877 | I40: Stolen Laptop | J40: 124442604 | K40: R2,286.90 | L40: R22,869.00 | M40: R20,582.10 | N40: Settled. File closed.
A41: 2024/2025 | B41: 09/12/2024 | C41: 13/12/2024 | D41: Kedibone Masuku | E41: BAR | F41: Sunninghill | I41: Damaged Laptop | J41: 124462773 | K41: R2,479.28 | L41: R24,792.85 | M41: =L41-K41 -> R22,313.57 | N41: Settled. File closed.
A42: 2024/2025 | B42: 10/01/2025 | C42: 14/01/2025 | D42: Sarah Baartman | E42: MOTOR | F42: Sunninghill | G42: JN 59 CC GP | H42: JN 59 CC GP | I42: Cracked Windscreen ; VW Caddy | J42: 124474301 | K42: R1,231.11 | L42: R4,924.47 | M42: =L42-K42 -> R3,693.36 | N42: Settled. File closed.
A43: 2024/2025 | B43: 08/01/2025 | C43: 22/01/2025 | D43: Nontsikelelo Makaula | E43: BAR | F43: Sunninghill | G43: CE4983 | H43: CE4983 | I43: Damaged Laptop | J43: 124480412 | K43: R2,000.00 | L43: R7,176.00 | M43: =L43-K43 -> R5,176.00 | N43: Settled. File closed.
A44: 2024/2025 | B44: 29/11/2024 | C44: 22/01/2025 | E44: OC | F44: East London Centre | I44: Damaged Aircons | J44: 124480428 | K44: R6,410.54 | L44: R64,105.41 | M44: R57,694.87 | N44: Settled. File closed.
A45: 2024/2025 | B45: 21/01/2025 | C45: 22/01/2025 | D45: Sahluko Tekana | E45: MOTOR | F45: Tweeling | G45: JD 34 RG GP | H45: JD 34 RG GP | I45: Shattered windscreen;VW Caddy | J45: 124479769 | K45: R1,254.12 | L45: R5,016.47 | M45: R1,254.11 | N45: Settled. File closed.
A46: 2024/2025 | B46: 02/01/2025 | C46: 29/01/2025 | D46: Beauty Mogotlane | E46: BAR | I46: Damaged laptop | J46: 124485041 | K46: R2,479.28 | L46: R24,792.85 | M46: R22,313.57 | N46: Settled. File closed.
A47: 2024/2025 | B47: 04/02/2025 | C47: 04/02/2025 | D47: Lungile Thangeni | E47: MOTOR | F47: Kimberly | G47: JN 59 BJ GP | H47: JN 59 BJ GP | I47: Cracked Windscreen ; VW Caddy | J47: 124487069 | K47: R1,231.11 | L47: R4,924.47 | M47: =L47-K47 -> R3,693.36 | N47: Settled. File closed.
A48: 2024/2025 | B48: 19/01/2025 | C48: 06/02/2025 | D48: Mduduzi Madonsela | E48: EE | F48: Mpumalanga | G48: OE1728 | H48: OE1728 | I48: Stolen Projector | J48: 124490085 | K48: R1,000.00 | L48: R8,999.00 | M48: R7,999.00 | N48: Settled. File closed.
A49: 2024/2025 | B49: 28/01/2025 | C49: 19/02/2025 | D49: Zelda | E49: BAR | G49: CE5183 | H49: CE5183 | I49: Damaged Tablet | J49: 124496907 | K49: R2,000.00 | L49: R4,998.99 | M49: R2,998.99 | N49: Settled. File closed.
A50: TOTAL | K50: =SUM(K7:K49) -> R188,727.98 | L50: =SUM(L7:L49) -> R1,746,169.36 | M50: =SUM(M7:M49) -> R1,554,932.92
A53: KEY
A54: DESCRIPTION | B54: COLOUR
A55: Settled | B55: Sky Blue
A56: In progress | B56: Yellow
A57: Not yet recognised | B57: Orange
A58: Proof of forcibly entry required | B58: Green
A59: Rejected | B59: Red

Sheet FEB 2025 -JAN 2026
E3: NATIONAL YOUTH DEVELOPMENT AGENCY COMMERCIAL POLICY
E4: PERIOD OF INSURANCE: FEBRUARY 2025 - JANUARY 2026
E5: CLAIMS HISTORY REPORT
A9: Insured Year | B9: Date of Loss | C9: Date Registered | D9: User | E9: Section of Cover | F9: Location | G9: Asset ID | H9: Asset Label | I9: Description | J9: Claim Number | K9: Excess | L9: Gross | M9: Net | N9: Status
A10: 2025/2026 | B10: 18/02/2025 | C10: 19/02/2025 | D10: Seja | E10: BAR | G10: CE5251 | H10: CE5251 | I10: Stolen Laptop | J10: 124496932 | K10: R2,286.90 | L10: R22,869.00 | M10: R20,582.10 | N10: Settled. File closed.
A11: 2025/2026 | B11: 05/03/2025 | C11: 24/03/2025 | D11: Sabelo Mzuku | E11: BAR | F11: Sandton | G11: CE4511 | H11: CE4511 | I11: Damage laptop | J11: 124514150 | K11: R2,000.00 | L11: R19,768.50 | M11: R17,768.50 | N11: Settled. File closed.
A12: 2025/2026 | B12: 27/03/2025 | C12: 31/03/2025 | D12: TBA | E12: Motor | F12: TBA | G12: TBA | H12: TBA | I12: Motor accident involving 3rd party | J12: 124524574 | K12: R4,000.00 | L12: TBA | M12: TBA | N12: Settled. File closed.
A13: 2025/2026 | B13: 15/04/2025 | C13: 15/04/2025 | D13: Philani Zulu | E13: BAR | F13: Rosettenville | G13: CE5062 | H13: CE5062 | I13: Damaged dell latitude 3330 | J13: 124528043 | K13: R2,000.00 | L13: R7,532.50 | M13: R5,532.50 | N13: Settled. File closed.
A14: 2025/2026 | B14: 16/04/2025 | C14: 23/04/2025 | D14: Kedumete Matshego | E14: BAR | G14: CE4000 | H14: CE4000 | I14: Damaged laptop | J14: 124531758 | K14: R2,000.00 | L14: R4,715.00 | M14: R2,715.00 | N14: Settled. File closed.
A15: 2025/2026 | B15: 16/04/2025 | C15: 24/04/2025 | D15: Sabelo Ndlangalala | E15: Motor | G15: JN 59 CC GP | H15: JN 59 CC GP | I15: 2018 VW Caddy Van damaged side mirror | J15: 124538914 | K15: R5,000.00 | L15: R7,921.78 | M15: R2,927.78 | N15: Settled. File closed.
A16: 2025/2026 | B16: 24/04/2025 | C16: 24/04/2025 | F16: Emalahleni | I16: Break-in at the Emahleni office | J16: 124532819 | K16: R3,873.60 | L16: =M16+K16 -> R38,735.90 | M16: R34,862.30 | N16: Settled. File closed.
A17: 2025/2026 | B17: 29/11/2024 | C17: 19/05/2025 | D17: Unathi Bonagni | E17: BAR | F17: Sandton | I17: Lost laptop in bolt vehicle | J17: 124544061 | K17: R2,398.90 | L17: R23,989.00 | M17: R21,590.10 | N17: Settled. File closed.
A18: 2025/2026 | B18: 07/05/2025 | C18: 20/05/2025 | D18: Vuyiswa Diba | E18: BAR | F18: East London | G18: CE3360 | H18: CE3360 | I18: Stolen Laptop | J18: 124545559 | K18: R2,069.00 | L18: R20,699.00 | M18: R18,629.10 | N18: Settled. File closed.
A19: 2025/2026 | B19: 10/06/2024 | C19: 26/05/2025 | E19: FG | F19: Sedibeng centre | G19: NA | H19: N/A | I19: Fraud claim - NYDA employees defrauded agency | J19: 124546539 | K19: R55,000.00 | L19: R190,000.00 | M19: R135,000.00 | N19: Settled. File closed.
A20: 2025/2026 | B20: 30/05/2025 | C20: 03/06/2025 | D20: Solomzi Tshona | E20: BAR | I20: Stolen Laptop | J20: 124551113 | K20: R2,939.90 | L20: R29,399.00 | M20: R26,459.10 | N20: Settled. File closed.
A21: 2025/2026 | B21: 24/02/2025 | C21: 13/06/2025 | D21: Beauty Matlala | E21: BAR | F21: Mbombela | G21: CE4557 | H21: CE4557 | I21: Damaged tablet | J21: 124487374 | K21: R2,000.00 | L21: R7,176.00 | M21: =L21-K21 -> R5,176.00 | N21: Settled. File closed.
A22: 2025/2026 | B22: 26/06/2025 | C22: 27/06/2025 | D22: EC Office | E22: OC | F22: Eastern Cape | I22: Fire broke out in EC Office | J22: 124562321 | K22: R2,615.59 | L22: R26,155.92 | M22: R23,540.33 | N22: Settled. File closed.
A23: 2025/2026 | B23: 12/05/2025 | C23: 30/06/2025 | D23: Vhutshilo Gandamipfa | E23: BAR | G23: CE4282 | H23: CE4282 | I23: Damaged Laptop | J23: 124562489 | K23: R0.00 | L23: R0.00 | M23: R0.00 | N23: NTU - NYDA advised that the device is still working and only needed a new charger
A24: 2025/2026 | B24: 02/07/2025 | C24: 03/07/2025 | D24: Promise Sibanyoni | E24: Motor | G24: LF31TD GP | H24: LF31TD GP | I24: Glass claim - hit by small rock while following a truck | J24: 124564914 | K24: R340.28 | L24: R1,361.12 | M24: R1,020.84 | N24: Settled. File closed.
A25: 2025/2026 | B25: 03/01/2025 | C25: 10/07/2025 | D25: Thamsanqa Mthembu | E25: BAR | F25: Sandton | G25: CE3872 | H25: CE3872 | I25: Stolen Laptop from employee vehicle | J25: 124568108 | K25: R2,369.00 | L25: R23,699.00 | M25: =L25-K25 -> R21,330.00 | N25: Settled. File closed.
A26: 2025/2026 | B26: 01/08/2025 | C26: 05/08/2025 | D26: Sahluko | E26: Motor | F26: Free State | G26: JD 34 RG GP | H26: JD 34 RG GP | I26: Head on motor collision accident | J26: 124583110 | K26: R12,530.00 | L26: R250,600.00 | M26: =L26-K26 -> R238,070.00 | N26: Settled. File closed.
A27: 2025/2026 | B27: TBA | C27: 02/09/2025 | D27: Cape Town | E27: Contents | I27: Lost assets at the Cape Town office | J27: 124637979 | K27: TBA | L27: TBA | M27: TBA | N27: 29/06/2026: Submitted the replacement quotation, reason for late notification, affidavit, and asset list to OMI. Awaiting NYDA to provide proof of forcible entry/exit
A28: 2025/2026 | B28: 18/08/2025 | C28: 02/09/2025 | D28: Polokwane | E28: Contents | G28: ADXM021038444 | H28: ADXM021038444 | I28: Stolen assets at the Polokwane offcie | J28: 124593306 | K28: TBA | L28: TBA | M28: TBA | N28: 30/06/2026: Awaiting replacement quotation from NYDA. 14/07/2026: NYDA advised that their IT department is assisting with the claim and is sourcing the replacement quotation, which will be shared with us as soon as it becomes available. 30/07/2026: Followed up with NYDA. We are awaiting their response on whether we may proceed with sourcing a replacement quotation on their behalf.
A29: 2025/2026 | B29: 18/09/2024 | C29: 45483 | D29: Ndlela Thulisa | E29: Baggage | I29: Lost baggage | J29: TBA | K29: TBA | L29: TBA | M29: TBA | N29: Settled. File closed.
A30: 2025/2026 | B30: 26/08/2025 | C30: 18/09/2025 | D30: Sechaba Sono | E30: BAR | I30: Damaged laptop | J30: 124601167 | K30: R3,179.29 | L30: R31,792.90 | M30: =L30-K30 -> R28,613.61 | N30: Sent AOL to insurer on 06/08/2026 await POP
A31: 2025/2026 | B31: 30/05/2024 | C31: 16/10/2025 | D31: Ndumiso Ndlovu | E31: BAR | G31: CE4347 | H31: CE4347 | I31: Damaged laptop | J31: 124696529 | K31: TBA | L31: TBA | M31: TBA | N31: Sent reason for late notice, damage report and repair quote to OMI on 25/07/2026 | Awaiting AOL
A32: 2025/2026 | B32: 30/09/2025 | C32: 16/10/2025 | D32: Basani Hlabathi | E32: BAR | G32: CE4287 | H32: CE4287 | I32: Damaged laptop | J32: 124612667 | K32: R2,000.00 | L32: R9,919.90 | M32: R7,919.90 | N32: Sent AOL to NYDA on 20/07/2026 await signed
A33: 2025/2026 | B33: 04/09/2025 | C33: 16/10/2025 | D33: Philani Zulu | E33: BAR | G33: CE4379 | H33: CE4379 | I33: Damaged laptop | J33: 124612680 | K33: TBA | L33: TBA | M33: TBA | N33: Awaiting damage report and quote, 30/07/2026 sent NYDA a quote for assessments to obtain damage report from Netpoint awaiting their feedback on how to proceed
A34: 2025/2026 | B34: 05/09/2025 | C34: 16/10/2025 | D34: Florence | E34: BAR | G34: CE5022 | H34: CE5022 | I34: Stolen laptop | J34: 124612690 | K34: R2,286.90 | L34: R22,869.00 | M34: R20,582.10 | N34: Settled. File closed.
A35: 2025/2026 | B35: 16/10/2025 | C35: 24/10/2025 | D35: Meldy | E35: BAR | G35: S/N:COGQTV3 | H35: S/N:COGQTV3 | I35: Stolen laptop | J35: 124616631 | K35: R4,699.00 | L35: R46,999.00 | M35: R42,299.10 | N35: Settled. File closed.
A36: 2025/2026 | B36: 30/09/2025 | C36: 30/10/2025 | D36: Nicholas Mutsi | E36: BAR | G36: CE4133 | H36: CE4133 | I36: Damaged laptop | J36: 124619703 | K36: R2,000.00 | L36: R12,903.00 | M36: R10,903.00 | N36: Sent AOL to insurer on 06/08/2026 await POP
A37: 2025/2026 | B37: 03/11/2025 | C37: 03/11/2025 | D37: Victoria | E37: BAR | G37: CE3870 | H37: CE3870 | I37: Damaged laptop | J37: 124621120 | K37: R2,000.00 | L37: R2,875.00 | M37: R875.00 | N37: Sent AOL to insurer on 06/08/2026 await POP
A38: 2025/2026 | B38: 30/10/2025 | C38: 06/11/2025 | D38: Okuhle | E38: BAR | G38: CE5433 | H38: CE5433 | I38: Stolen laptop | J38: 124623396 | K38: R0.00 | L38: R0.00 | M38: R0.00 | N38: Claim repudiated due to no proof of violent and forcible entry/exit
A39: 2025/2026 | B39: 11/11/2025 | C39: 20/11/2025 | D39: Ncomeka Magopeni | E39: BAR | G39: CE3539 | H39: CE3539 | I39: Damaged laptop | J39: 124630199 | K39: R2,000.00 | L39: R2,875.00 | M39: R875.00 | N39: Sent AOL to insurer on 06/08/2026 await POP
A40: 2025/2026 | B40: 20/11/2025 | C40: 24/11/2025 | D40: N/A | E40: Events | G40: N/A | H40: N/A | I40: Food poisoning at event held on 20 Nov 2025 | J40: ITOO/SC/00028404 | K40: R0.00 | L40: R0.00 | M40: R0.00 | N40: Claim registered, awaiting LOD from NYDA if any | 30/06/2026 still no LOD received |14/07/2026 NYDA advised we can close the claim due to no LOD/approach received
A41: 2025/2026 | B41: 31/10/2025 | C41: 02/12/2025 | D41: Faith Langeni | E41: BAR | G41: TBA | H41: TBA | I41: Stolen Camera | J41: 124636791 | K41: R0.00 | L41: R0.00 | M41: R0.00 | N41: 14/07/2026 NYDA advised that the asset wasn’t tagged therefore not included on FAR thus not insured, NYDA withdrew claim
A42: 2025/2026 | B42: 24/09/2025 | C42: 02/12/2025 | D42: Vuyisile Sibiya | E42: BAR | G42: CE4348 | H42: CE4348 | I42: Stolen laptop | J42: 124637443 | K42: R4,174.90 | L42: R21,749.00 | M42: R19,574.10 | N42: Settled. File closed.
A43: 2025/2026 | B43: 08/12/2025 | C43: 10/12/2025 | D43: Dimakatso Masiteng | E43: BAR | G43: TBA | H43: TBA | I43: Damaged laptop | J43: 124642479 | K43: R2,000.00 | L43: R11,822.00 | M43: R9,822.00 | N43: Sent AOL to NYDA on 20/07/2026 await signed
A44: 2025/2026 | B44: 25/11/2025 | C44: 09/12/2025 | D44: Victo Mposula | E44: BAR | G44: CE4175 | H44: CE4175 | I44: Damaged laptop | J44: 124641575 | K44: R2,000.00 | L44: R18,000.00 | M44: R16,000.00 | N44: Sent AOL to insurer on 06/08/2026 await POP
A45: 2025/2026 | B45: 02/12/2025 | C45: 09/12/2025 | D45: Tshiamo Motlahaba | E45: BAR | G45: CE3511 | H45: CE3511 | I45: Damaged laptop | J45: 124641788 | K45: R0.00 | L45: R0.00 | M45: R0.00 | N45: Claim repudiated due wear and tear | Sent rejection letter to NYDA
A46: 2025/2026 | B46: 26/12/2025 | C46: 26/12/2025 | D46: TBA | E46: FIRE | G46: TBA | H46: TBA | I46: Flooded office due to burst pressure pipe/s | J46: 124676783 | K46: R15,501.00 | L46: R155,010.00 | M46: =L46-K46 -> R139,509.00 | N46: Settled. File closed.
A47: 2025/2026 | B47: 01/12/2025 | C47: 12/01/2026 | D47: Andile Mbatha | E47: BAR | G47: CE5763 | H47: CE5763 | I47: Damaged laptop | J47: 124653691 | K47: R2,000.00 | L47: R6,969.00 | M47: R4,969.00 | N47: Sent AOL to NYDA on 21/07/2026 await signed for payment
A48: 2025/2026 | B48: 29/01/2026 | C48: 04/02/2026 | D48: Lebjana Mahasha | E48: BAR | G48: CE5061 | H48: CE5061 | I48: Damaged laptop | J48: 124667422 | K48: R2,000.00 | L48: R7,791.25 | M48: R5,791.25 | N48: Sent AOL to NYDA on 30/07/2026 await signed for payment
A49: 2025/2026 | B49: 10/07/2025 | C49: 19/08/2025 | D49: Alpheus Mosoma | E49: Motor | G49: JD 34 PW GP | H49: JD 34 PW GP | I49: Cracked windscreen claim - GROBESDAL | J49: 124586966 | K49: R661.30 | L49: R2,300.00 | M49: R1,638.70 | N49: Settled. File closed.
A50: 2025/2026 | B50: 30/07/2025 | C50: 20/08/2025 | D50: Gladys Makwela | E50: Motor | G50: JN 59 BT GP | H50: JN 59 BT GP | I50: Cracked windscreen claim- BUSHBUCKRIDGE | J50: 124588036 | K50: R1,292.67 | L50: R4,496.25 | M50: R3,203.58 | N50: Settled. File closed.
A51: 2025/2026 | B51: 27/10/2025 | C51: 19/11/2025 | D51: Njabulo | E51: Motor | G51: JN 59 BX GP | H51: JN 59 BX GP | I51: Lost keys | J51: 124643496 | K51: R894.63 | L51: R8,964.25 | M51: R8,069.62 | N51: Settled. File closed.
A52: 2025/2026 | B52: 04/12/2025 | C52: 09/12/2025 | D52: Mawakhazole Nyatela | E52: Motor | G52: KS 08 DY GP | H52: KS 08 DY GP | I52: Shattered windscreen | J52: 124641069 | K52: R3,434.60 | L52: R13,738.83 | M52: R10,304.23 | N52: Settled. File closed.
A53: 2025/2026 | B53: 05/01/2026 | C53: 20/01/2026 | D53: Kharavho Mandiwana | E53: Motor | G53: JC 19 BG GP | H53: JC 19 BG GP | I53: Minor motor damage (scratch to vehicle) | J53: 124658941 | K53: R5,000.00 | L53: TBA | M53: TBA | N53: Settled. File closed. However awaiting NYDA to settle excess and collect vehicle
B54: TOTAL | K54: =SUM(K10:K53) -> R160,547.46 | L54: =SUM(L10:L53) -> R1,055,696.10 | M54: =SUM(M10:M53) -> R906,152.84
A56: KEY
A57: DESCRIPTION | B57: COLOUR
A58: Settled | B58: Sky Blue
A59: In progress | B59: Yellow
A60: Not yet recognised | B60: Orange
A61: Proof of forcibly entry required | B61: Green
A62: Rejected | B62: Red

Sheet FEB 2026-JAN 2027
E4: NATIONAL YOUTH DEVELOPMENT AGENCY COMMERCIAL POLICY
E5: PERIOD OF INSURANCE: FEBRUARY 2026 - JANUARY 2027
E6: CLAIMS HISTORY REPORT
A10: Insured Year | B10: Date of Loss | C10: Date Registered | D10: User | E10: Section of Cover | F10: Asset ID | G10: Asset Label | H10: Description | I10: Claim Number | J10: Excess | K10: Gross | L10: Net | M10: Status
A11: 2026/2027 | B11: TBA | C11: 09/02/2026 | D11: WRSETA | E11: FG | F11: N/A | G11: N/A | H11: Fraud claim - WRSETA | I11: 124670485 | J11: R0.00 | K11: R0.00 | L11: R0.00 | M11: Claim falls within excess. File Closed
A12: 2026/2027 | B12: TBA | C12: 09/02/2026 | D12: Unathi | E12: FG | F12: N/A | G12: N/A | H12: Fraud -Mr Unathi | I12: 124671062 | J12: R0.00 | K12: R0.00 | L12: R0.00 | M12: Claim falls within excess. File Closed
A13: 2026/2027 | B13: 03/02/2026 | C13: 20/02/2026 | D13: West Rand office | E13: Contents | F13: TBA | G13: TBA | H13: Rain Damage: Ceilings were damaged and office furniture damaged again | I13: 124676783 | J13: R15,501.00 | K13: R155,010.00 | L13: =K13-J13 -> R139,509.00 | M13: Settled. File closed.
A14: 2026/2027 | B14: 27/02/2026 | C14: 09/03/2026 | D14: Carol Sefadi | E14: BAR | F14: CE3558 | G14: CE3558 | H14: When opening the laptop screws started coming out from the right corner | I14: 124684077 | J14: TBA | K14: TBA | L14: TBA | M14: Awaiting damage report and quote from NYDA. 30/07/2026 sent NYDA quote for obtaining damage report and quote from Netpoint awaiting NYDA to advise they accept the quote so we may issue invoice for payment
A15: 2026/2027 | B15: 05/09/2025 | C15: 12/03/2026 | D15: Sonwabo Cangci | E15: BAR | F15: CE4540 & CE5385 | G15: CE4540 & CE5385 | H15: Break in at employee's house | I15: 124686574 | J15: TBA | K15: TBA | L15: TBA | M15: Awaiting damage report and quote from NYDA. 30/07/2026 sent NYDA quote for obtaining damage report and quote from Netpoint awaiting NYDA to advise they accept the quote so we may issue invoice for payment
A16: 2026/2027 | B16: 23/03/2026 | C16: 24/03/2026 | D16: Johannes Bosadi | E16: BAR | F16: CE4766 | G16: CE4766 | H16: Screen not switching on | I16: 124692086 | J16: TBA | K16: TBA | L16: TBA | M16: Awaiting damage report and quote from NYDA. 30/07/2026 sent NYDA quote for obtaining damage report and quote from Netpoint awaiting NYDA to advise they accept the quote so we may issue invoice for payment
A17: 2026/2027 | B17: 11/03/2026 | C17: 30/03/2026 | D17: Prudence Cele | E17: BAR | F17: CE3853 | G17: CE3853 | H17: Laptop was charging employee tripped on cable and the laptop fell with the screen and keyboard dislocating slightly | I17: 124694921 | J17: TBA | K17: TBA | L17: TBA | M17: Awaiting damage report and quote from NYDA. 30/07/2026 sent NYDA quote for obtaining damage report and quote from Netpoint awaiting NYDA to advise they accept the quote so we may issue invoice for payment
A18: 2026/2027 | B18: 23/03/2026 | C18: 02/04/2026 | D18: Vutshilo Mudau | E18: BAR | F18: CE4401 | G18: CE4401 | H18: Description on claim form not clear - awaiting NYDA to send clear description | I18: 124692086 | J18: TBA | K18: TBA | L18: TBA | M18: Awaiting damage report and quote from NYDA. 30/07/2026 sent NYDA quote for obtaining damage report and quote from Netpoint awaiting NYDA to advise they accept the quote so we may issue invoice for payment
A19: 2026/2027 | B19: 20/02/2026 | C19: 10/04/2026 | D19: Sphelele Mavuso | E19: BAR | F19: CE4427 | G19: CE4427 | H19: Tea spilled over onto the laptop | I19: 124699580 | J19: TBA | K19: TBA | L19: TBA | M19: Awaiting damage report and quote from NYDA. 30/07/2026 sent NYDA quote for obtaining damage report and quote from Netpoint awaiting NYDA to advise they accept the quote so we may issue invoice for payment
A20: 2026/2027 | B20: 10/02/2026 | C20: 10/04/2026 | D20: Lovington Buthelezi | E20: BAR | F20: CE3704 | G20: CE3704 | H20: The asset stopped workng and is not charging | I20: 124699582 | J20: TBA | K20: TBA | L20: TBA | M20: Awaiting damage report and quote from NYDA. 30/07/2026 sent NYDA quote for obtaining damage report and quote from Netpoint awaiting NYDA to advise they accept the quote so we may issue invoice for payment
A21: 2026/2027 | B21: 20/04/2026 | C21: 23/04/2026 | D21: Rito Mahlangu | E21: BAR | F21: CE4430 | G21: CE4430 | H21: Laptop swictches off and pressess itself | I21: 124705727 | J21: TBA | K21: TBA | L21: TBA | M21: Awaiting damage report and quote from NYDA. 30/07/2026 sent NYDA quote for obtaining damage report and quote from Netpoint awaiting NYDA to advise they accept the quote so we may issue invoice for payment
A22: 2026/2027 | B22: 22/04/2026 | C22: 28/04/2026 | D22: Mannini | E22: BAR | F22: CE4293 | G22: CE4293 | H22: Laptop stopped working, it switched off while charging | I22: 124707910 | J22: TBA | K22: TBA | L22: TBA | M22: Awaiting damage report and quote from NYDA. 30/07/2026 sent NYDA quote for obtaining damage report and quote from Netpoint awaiting NYDA to advise they accept the quote so we may issue invoice for payment
A23: 2026/2027 | B23: 23/04/2026 | C23: 08/05/2026 | D23: Miracle Khoza | E23: BAR | F23: CE4751 | G23: CE4751 | H23: Suspected wear and tear | I23: 124713114 | J23: TBA | K23: TBA | L23: TBA | M23: Awaiting damage report and quote from NYDA. 30/07/2026 sent NYDA quote for obtaining damage report and quote from Netpoint awaiting NYDA to advise they accept the quote so we may issue invoice for payment
A24: 2026/2027 | B24: 05/05/2026 | C24: 08/05/2026 | D24: East London office | E24: TBA | F24: N/A | G24: N/A | H24: Roof leaking | I24: 124713127 | J24: TBA | K24: TBA | L24: TBA | M24: 15/06/2026 OMI has appointed loss adjuster to conduct and assessment 14/07/2026 awaiting OMI to provide update on status of claim |30/07/2026 f/u with OMI on assessment outcome
A25: 2026/2027 | B25: 06/05/2026 | C25: 14/05/2026 | D25: Busisiwe Nxumalo | E25: BAR | F25: CE3128 | G25: CE3128 | H25: Cracked screen in the airplane craft | I25: 124717684 | J25: TBA | K25: TBA | L25: TBA | M25: 30/06/2026 Awaiting pictures, damage report and quote from NYDA | 15/06/2026 Sent NYDA Quote for damage assessemnt reports awaiting feedback on way forward
A26: 2026/2027 | B26: 17/11/2025 | C26: 21/05/2026 | D26: George Olyn | E26: BAR | F26: CE4095 | G26: CE4095 | H26: The laptop does not switch on | I26: 124721765 | J26: TBA | K26: TBA | L26: TBA | M26: 30/06/2026 Awaiting pictures, damage report and quote from NYDA | 15/06/2026 Sent NYDA Quote for damage assessemnt reports awaiting feedback on way forward
A27: 2026/2027 | B27: 10/04/2026 | C27: 29/05/2026 | D27: Jabulani Maswanganyi | E27: BAR | F27: CE3969 | G27: CE3969 | H27: Stolen Tablet and Dell Screen | I27: 124726304 | J27: TBA | K27: TBA | L27: TBA | M27: 30/06/2026 Awaiting quote from NYDA | 24/07/2026 NYDA advised to send quote as soon as available
A28: 2026/2027 | B28: 28/05/2026 | C28: 05/06/2026 | D28: Zama Msomi | E28: EE | F28: CE5294 | G28: CE5294 | H28: Damaged screen | I28: 124729869 | J28: TBA | K28: TBA | L28: TBA | M28: 30/06/2026 Awaiting pictures, damage report and quote from NYDA | 15/06/2026 Sent NYDA Quote for damage assessemnt reports awaiting feedback on way forward
A29: 2026/2027 | B29: 02/05/2026 | C29: 10/06/2026 | D29: Musa Mthombeni | E29: BAR | F29: CE5380 | G29: CE5380 | H29: Suspected car jamming | I29: 124732204 | J29: TBA | K29: TBA | L29: TBA | M29: Awaiting quote from NYDA
A30: 2026/2027 | B30: 17/06/2026 | C30: 24/06/2026 | D30: Nkileng Nyembe | E30: BAR | F30: CE3835 | G30: CE3835 | H30: Laptop switched itself off and flips different screens at a time tehn it shut down | I30: 124738069 | J30: TBA | K30: TBA | L30: TBA | M30: 30/06/2026 Awaiting NYDA to send photos of the damaged asset, damage report and quote
A31: 2026/2027 | B31: 26/12/2025 | C31: 01/07/2026 | D31: Westrand Office | E31: OC | F31: TBA | G31: TBA | H31: water damage caused by a burst pipe, which occurred during the festive period when the premises were unoccupied. The escape of water resulted in damage to carpets, walls, skirtings, and certain office furniture. | I31: 124737484 | J31: =K31-L31 -> R11,617.93 | K31: R116,179.27 | L31: R104,561.34 | M31: Sent AOL to Nyda ON 21/07/2026 Await signed for payment
A32: 2026/2027 | B32: 29/06/2026 | C32: 17/07/2026 | D32: Isaac Shilangu | E32: BAR | F32: CE4366 | G32: CE4366 | H32: Laptop does not switch on it flickers | I32: 124749508 | J32: TBA | K32: TBA | L32: TBA | M32: Awaiting damage report and quote
A33: 2026/2027 | B33: 24/06/2026 | C33: 24/07/2026 | D33: Shamadie Mlundi | E33: BAR | F33: CE4518 | G33: CE4518 | H33: Tablet slipped and fell | I33: TBA | J33: TBA | K33: TBA | L33: TBA | M33: Awaiting damage report and quote
A34: 2026/2027 | B34: 06/02/2026 | C34: 17/02/2026 | D34: Doreen Mogashoa | E34: Motor | F34: JN 59 CH GP | G34: JN 59 CH GP | H34: Damaged winscreen | I34: 124675432 | J34: TBA | K34: TBA | L34: TBA | M34: Settled. File closed.
A35: 2026/2027 | B35: 03/02/2026 | C35: 11/03/2026 | D35: Promise Sibanyoni | E35: Motor | F35: LF 31 TD GP | G35: LF 31 TD GP | H35: Damaged sunroof | I35: 124686077 | J35: TBA | K35: TBA | L35: TBA | M35: Claim amount falls within excess
A36: 2026/2027 | B36: 21/04/2026 | C36: 13/05/2026 | D36: Thuso Motankisi | E36: Motor | F36: LS 58 FG GP | G36: LS 58 FG GP | H36: Motor accident | I36: 124716425 | J36: TBA | K36: TBA | L36: TBA | M36: Authorisation issued to SP. Vehicle booked in on 09/06/2026; repairs delayed due to parts on back order. As at 30/06/2026, booking date TBC pending supplier ETA. 14/07/2026 Parts are on back order , we are awaiting an ETA from the supplier then we can book the vehicle for repair. 31/07/2026 According to the repairer, they are still awaiting the required parts. Unfortunately, there is currently no estimated arrival date available.
A37: 2026/2027 | B37: 29/06/2026 | C37: 07/07/2026 | D37: Jabulile Shongwe | E37: Motor | F37: JN 59 BT GP | G37: JN 59 BT GP | H37: Motor accident | I37: 124745000 | J37: TBA | K37: TBA | L37: TBA | M37: Awaiting NYDA to take the vehicle to Chris Craft for assessment. quotes and pictures. 30/07/2026 followed with NYDA if they have taken in the vehicle awaiting response.
A38: 2026/2027 | B38: TBA | C38: TBA | D38: TBA | E38: Motor | F38: JN 59 BT GP | G38: JN 59 BT GP | H38: Lost keys | I38: TBA | J38: TBA | K38: TBA | L38: TBA | M38: Awaiting NYDA to provide incident report. 30/07/2026 followed up with NYDA awaiting response
A39: 2026/2027 | B39: TBA | C39: TBA | D39: TBA | E39: Motor | F39: JN 59 CC GP | G39: JN 59 CC GP | H39: Lost keys | I39: TBA | J39: TBA | K39: TBA | L39: TBA | M39: Awaiting NYDA to provide incident report. 30/07/2026 followed up with NYDA awaiting response
A40: 2026/2027 | B40: TBA | C40: TBA | D40: TBA | E40: Motor | F40: KS 08 DY GP | G40: KS 08 DY GP | H40: Lost keys | I40: TBA | J40: TBA | K40: TBA | L40: TBA | M40: Awaiting NYDA to provide incident report. 30/07/2026 followed up with NYDA awaiting response
A41: 2026/2027 | B41: TBA | C41: TBA | D41: TBA | E41: Motor | F41: LF 85 MF GP | G41: LF 85 MF GP | H41: Lost keys | I41: TBA | J41: TBA | K41: TBA | L41: TBA | M41: Awaiting NYDA to provide incident report. 30/07/2026 followed up with NYDA awaiting response
A42: 2026/2027 | B42: TBA | C42: TBA | D42: TBA | E42: Motor | F42: JF 49 YW GP | G42: JF 49 YW GP | H42: Lost keys | I42: TBA | J42: TBA | K42: TBA | L42: TBA | M42: Awaiting NYDA to provide incident report. 30/07/2026 followed up with NYDA awaiting response
A43: 2026/2027 | B43: TBA | C43: TBA | D43: TBA | E43: Motor | F43: HM 34 JY GP | G43: HM 34 JY GP | H43: Lost keys | I43: TBA | J43: TBA | K43: TBA | L43: TBA | M43: Awaiting NYDA to provide incident report. 30/07/2026 followed up with NYDA awaiting response
A44: 2026/2027 | B44: 10/06/2026 | C44: 04/08/2026 | D44: Trudy | E44: BAR | F44: CE5056 | G44: CE5056 | H44: Laptop buttop don’t respond when pressed | I44: 124756691 | J44: TBA | K44: TBA | L44: TBA | M44: Awaiting damage report and quote from NYDA
A45: 2026/2027 | B45: 30/06/2026 | C45: 23/07/2026 | D45: Walter Bango | E45: BAR | F45: TBA | G45: TBA | H45: There was a crack then it expnaded from the screen | I45: 124752246 | J45: TBA | K45: TBA | L45: TBA | M45: Awaiting incident report ,damage report and quote form NYDA
A46: 2026/2027 | B46: 24/06/2026 | C46: 04/08/2026 | D46: Noluthando Ngcwabe-Cokile | E46: BAR | F46: TBA | G46: TBA | H46: Car broken into and laptop stolen | I46: 124756703 | J46: TBA | K46: TBA | L46: TBA | M46: Awaiting quote from NYDA
B47: TOTAL | J47: =SUM(J11:J43) -> R27,118.93 | K47: =SUM(K11:K43) -> R271,189.27 | L47: =SUM(L11:L43) -> R244,070.34
A49: KEY
A50: DESCRIPTION | B50: COLOUR
A51: Settled | B51: Sky Blue
A52: In progress | B52: Yellow
A53: Not yet recognised | B53: Orange
A54: Proof of forcibly entry required | B54: Green
A55: Rejected | B55: Red

Sheet Travel
A1: NYDA COMMERCIAL POLICY
A2: PERIOD OF INSURANCE: FEBRUARY 2024 - JANUARY 2027
A3: CLAIMS HISTORY REPORT
A4: Insured Year | B4: Date of Loss | C4: Date Registered | D4: User | E4: Section of Cover | F4: Location | G4: Description | H4: Gross Amount | I4: Excess | J4: Net Amount | K4: Status
A5: 2024/2025 | B5: 18/09/2024 | C5: 07/10/2024 | D5: Ndlela Thulisa | E5: Delayed Luggage | F5: Durban | G5: Lost baggage | H5: R2,234.53 | I5: R0.00 | J5: R2,234.53 | K5: Settled
A6: 2026-2027 | B6: 21/06/2026 | C6: 23/07/2026 | D6: Mellon Ncube | E6: Lost luggage | F6: China | G6: Lost perfume from luggage | H6: TBA | I6: TBA | J6: TBA | K6: Awaiting insurer to register claim and revert with required details for validation
A23: DESCRIPTION | B23: COLOUR
A24: Settled | B24: Green
A25: In-progress | B25: Yellow
A26: Rejected | B26: Red
